{"text_format":"3","workbook":"xlsx","n_sheets":4,"sheets":["Souhrn","Aktiva","Pasiva","Kategorie"],"not_rendered":{"defined_names":10},"read":"whole","date_system":"1900"}

{"sheet":"Souhrn","index":0,"n_rows":12,"n_cols":4,"rows_kept":12}
[null,"Účetní rozvaha"]
[null,null,{"$f":"\"FR-\"&YEAR(TODAY())-1","v":"FR-2016"},{"$f":"\"FR-\"&YEAR(TODAY())","v":"FR-2017"}]
[null,"Typ aktiva","Předchozí rok","Aktuální rok"]
[null,"Aktuální aktiva",{"$f":"SUMIFS(Aktiva[Předchozí rok],Aktiva[Typ aktiva],Řídicí_panel[[#This Row],[Typ aktiva]])+SUMIFS(Pasiva[Předchozí rok],Pasiva[Typ závazku],Řídicí_panel[[#This Row],[Typ aktiva]])","v":600},{"$f":"SUMIFS(Aktiva[Aktuální rok],Aktiva[Typ aktiva],Řídicí_panel[[#This Row],[Typ aktiva]])+SUMIFS(Pasiva[Aktuální rok],Pasiva[Typ závazku],Řídicí_panel[[#This Row],[Typ aktiva]])","v":600}]
[null,"Investiční majetek",{"$f":"SUMIFS(Aktiva[Předchozí rok],Aktiva[Typ aktiva],Řídicí_panel[[#This Row],[Typ aktiva]])+SUMIFS(Pasiva[Předchozí rok],Pasiva[Typ závazku],Řídicí_panel[[#This Row],[Typ aktiva]])","v":{"v":-100,"d":"-100 "}},{"$f":"SUMIFS(Aktiva[Aktuální rok],Aktiva[Typ aktiva],Řídicí_panel[[#This Row],[Typ aktiva]])+SUMIFS(Pasiva[Aktuální rok],Pasiva[Typ závazku],Řídicí_panel[[#This Row],[Typ aktiva]])","v":{"v":-85,"d":"-85 "}}]
[null,"Ostatní aktiva",{"$f":"SUMIFS(Aktiva[Předchozí rok],Aktiva[Typ aktiva],Řídicí_panel[[#This Row],[Typ aktiva]])+SUMIFS(Pasiva[Předchozí rok],Pasiva[Typ závazku],Řídicí_panel[[#This Row],[Typ aktiva]])","v":0},{"$f":"SUMIFS(Aktiva[Aktuální rok],Aktiva[Typ aktiva],Řídicí_panel[[#This Row],[Typ aktiva]])+SUMIFS(Pasiva[Aktuální rok],Pasiva[Typ závazku],Řídicí_panel[[#This Row],[Typ aktiva]])","v":0}]
[null,"Aktuální závazky",{"$f":"SUMIFS(Aktiva[Předchozí rok],Aktiva[Typ aktiva],Řídicí_panel[[#This Row],[Typ aktiva]])+SUMIFS(Pasiva[Předchozí rok],Pasiva[Typ závazku],Řídicí_panel[[#This Row],[Typ aktiva]])","v":500},{"$f":"SUMIFS(Aktiva[Aktuální rok],Aktiva[Typ aktiva],Řídicí_panel[[#This Row],[Typ aktiva]])+SUMIFS(Pasiva[Aktuální rok],Pasiva[Typ závazku],Řídicí_panel[[#This Row],[Typ aktiva]])","v":350}]
[null,"Dlouhodobé závazky",{"$f":"SUMIFS(Aktiva[Předchozí rok],Aktiva[Typ aktiva],Řídicí_panel[[#This Row],[Typ aktiva]])+SUMIFS(Pasiva[Předchozí rok],Pasiva[Typ závazku],Řídicí_panel[[#This Row],[Typ aktiva]])","v":0},{"$f":"SUMIFS(Aktiva[Aktuální rok],Aktiva[Typ aktiva],Řídicí_panel[[#This Row],[Typ aktiva]])+SUMIFS(Pasiva[Aktuální rok],Pasiva[Typ závazku],Řídicí_panel[[#This Row],[Typ aktiva]])","v":0}]
[null,"Jmění vlastníků",{"$f":"SUMIFS(Aktiva[Předchozí rok],Aktiva[Typ aktiva],Řídicí_panel[[#This Row],[Typ aktiva]])+SUMIFS(Pasiva[Předchozí rok],Pasiva[Typ závazku],Řídicí_panel[[#This Row],[Typ aktiva]])","v":0},{"$f":"SUMIFS(Aktiva[Aktuální rok],Aktiva[Typ aktiva],Řídicí_panel[[#This Row],[Typ aktiva]])+SUMIFS(Pasiva[Aktuální rok],Pasiva[Typ závazku],Řídicí_panel[[#This Row],[Typ aktiva]])","v":350}]
[null,"Celková aktiva",{"$f":"Aktiva[[#Totals],[Předchozí rok]]","v":500},{"$f":"Aktiva[[#Totals],[Aktuální rok]]","v":515}]
[null,"Celková pasiva a jmění akcionářů",{"$f":"Pasiva[[#Totals],[Předchozí rok]]","v":500},{"$f":"Pasiva[[#Totals],[Aktuální rok]]","v":700}]
[null,"Zůstatek",{"$f":"C10-C11","v":0},{"$f":"D10-D11","v":{"v":-185,"d":"-185 "}}]

{"sheet":"Aktiva","index":1,"n_rows":14,"n_cols":5,"rows_kept":14}
[null,"Aktiva"]
[{"$nulls":3},{"$f":"FR_ROK","v":"FR-2016"},{"$f":"FR_ROK_2","v":"FR-2017"}]
[null,"Typ aktiva","Popis","Předchozí rok","Aktuální rok"]
[null,"Aktuální aktiva","Hotovost",600,600]
[null,"Aktuální aktiva","Investice"]
[null,"Aktuální aktiva","Zásoby"]
[null,"Aktuální aktiva","Pohledávky"]
[null,"Aktuální aktiva","Náklady příštích období"]
[null,"Investiční majetek","Nemovitosti a vybavení"]
[null,"Investiční majetek","Zdokonalení předmětu nájmu"]
[null,"Investiční majetek","Jmění a další investice"]
[null,"Investiční majetek","Minus celkové odpisy (záporná hodnota)",{"v":-100,"d":"-100 "},{"v":-85,"d":"-85 "}]
[null,"Ostatní aktiva","Charita"]
[null,"Celková aktiva",null,{"$f":"SUBTOTAL(109,Aktiva[Předchozí rok])","v":500},{"$f":"SUBTOTAL(109,Aktiva[Aktuální rok])","v":515}]

{"sheet":"Pasiva","index":2,"n_rows":12,"n_cols":5,"rows_kept":12}
[null,"Pasiva"]
[{"$nulls":3},{"$f":"FR_ROK","v":"FR-2016"},{"$f":"FR_ROK_2","v":"FR-2017"}]
[null,"Typ závazku","Popis","Předchozí rok","Aktuální rok"]
[null,"Aktuální závazky","Závazky",null,350]
[null,"Aktuální závazky","Časově rozlišené mzdy"]
[null,"Aktuální závazky","Časově rozlišené odměny",500]
[null,"Aktuální závazky","Splatná daň z příjmu"]
[null,"Aktuální závazky","Nezasloužené výnosy"]
[null,"Dlouhodobé závazky","Splatná hypotéka"]
[null,"Jmění vlastníků","Investiční kapitál",null,350]
[null,"Jmění vlastníků","Kumulovaný nerozdělený zisk"]
[null,"Celková pasiva a jmění akcionářů",null,{"$f":"SUBTOTAL(109,Pasiva[Předchozí rok])","v":500},{"$f":"SUBTOTAL(109,Pasiva[Aktuální rok])","v":700}]

{"sheet":"Kategorie","index":3,"n_rows":9,"n_cols":2,"rows_kept":9}
[null,"Kategorie"]
[]
[null,"Kategorie"]
[null,"Aktuální aktiva"]
[null,"Investiční majetek"]
[null,"Ostatní aktiva"]
[null,"Aktuální závazky"]
[null,"Dlouhodobé závazky"]
[null,"Jmění vlastníků"]